bitfinex/quotes_SOLUSD_20260114
["timestamp","ask_amount","ask_price","bid_price","bid_amount"]
[1768371733428,4.57071755,143.86,143.83,7.63168585]
[1768371733629,4.57071755,143.86,143.83,20.31168585]
[1768371735833,0.67597191,143.86,143.83,20.31168585]
[1768371736036,4.57071755,143.86,143.83,20.31168585]
[1768371736350,4.57071755,143.84,143.8,7.63299143]
[1768371736531,0.67597191,143.84,143.81,13.35917205]
[1768371736954,17.37625641,143.88,143.82,0.67917205]
[1768371736955,0.67597191,143.86,143.82,0.67917205]
[1768371737547,0.67597191,143.86,143.83,7.63177864]
[1768371739442,0.67597191,143.86,143.83,0.67917205]
[1768371740259,4.61604387,143.85,143.83,0.67917205]
[1768371740435,0.67597191,143.86,143.83,0.67917205]
[1768371740635,4.61604534,143.85,143.83,0.67917205]
[1768371740843,0.67597191,143.86,143.83,0.67917205]
[1768371741154,4.61603646,143.85,143.83,0.67917205]
[1768371741341,0.67597191,143.86,143.83,0.67917205]
[1768371741555,0.72058556,143.84,143.82,6.953056]
[1768371741850,0.72058556,143.84,143.8,0.65849354]
[1768371742050,6.80471168,143.84,143.8,20.2923067]
[1768371743953,6.80471168,143.84,143.81,0.65849354]
[1768371744158,0.72058556,143.85,143.82,0.65849354]
[1768371744351,4.62365089,143.84,143.82,0.65849354]
[1768371744535,0.72058556,143.85,143.82,0.65849354]
[1768371744736,4.62360899,143.84,143.82,0.65849354]
[1768371744938,0.72058556,143.85,143.82,0.65849354]
[1768371746357,0.72058556,143.86,143.83,0.65849354]
[1768371746748,0.72058556,143.86,143.83,13.33849354]
[1768371747065,0.72058556,143.87,143.83,13.33849354]
[1768371747246,6.08412612,143.88,143.84,0.65849354]
[1768371747247,0.72058556,143.88,143.84,0.65849354]
[1768371747847,0.72058556,143.89,143.85,0.65849354]
[1768371748163,0.72058556,143.89,143.86,13.33849354]
[1768371750051,6.80471168,143.88,143.85,6.95121506]
[1768371750244,0.72058556,143.87,143.85,6.95121506]
[1768371750768,6.94934509,143.9,143.85,6.95121506]
[1768371750949,0.72058556,143.88,143.85,6.95121506]
[1768371751150,6.80471168,143.88,143.85,6.95121506]
[1768371752065,6.80471168,143.88,143.85,0.65849354]
[1768371752246,0.72058556,143.9,143.85,0.65849354]
[1768371752448,0.72058556,143.9,143.87,0.65849354]
[1768371752661,0.72058556,143.9,143.87,0.59849354]
[1768371753245,0.72058556,143.89,143.86,12.68]
[1768371753860,0.72058556,143.89,143.86,19.63101048]
[1768371754174,6.80471168,143.9,143.86,19.63101048]
[1768371754560,6.80471168,143.9,143.86,20.28950402]
[1768371754773,0.72058556,143.89,143.86,20.28950402]
[1768371756047,6.77719095,143.9,143.86,20.28950402]
[1768371757373,6.77719095,143.89,143.85,0.65637773]
[1768371757554,6.77719095,143.89,143.86,0.65637773]
[1768371758059,0.69306483,143.89,143.86,0.65637773]
[1768371758756,0.69306483,143.9,143.87,0.65637773]
[1768371759465,6.77719095,143.9,143.87,0.65637773]
[1768371759774,6.08412612,143.9,143.87,0.65637773]
[1768371759964,6.08412612,143.91,143.87,0.65637773]
[1768371760464,6.08412612,143.9,143.87,0.65637773]
[1768371760657,0.69306483,143.91,143.87,0.65637773]
[1768371761064,6.77719095,143.91,143.87,0.65637773]
[1768371761452,6.08412612,143.9,143.87,0.65637773]
[1768371762563,6.08412612,143.91,143.89,0.65637773]
[1768371762769,6.77719095,143.91,143.88,13.33637773]
[1768371764180,0.69306483,143.91,143.88,20.28658358]
[1768371765281,6.77719095,143.92,143.89,0.65637773]
[1768371766083,0.69306483,143.92,143.89,7.60582528]
[1768371766575,6.08412612,143.94,143.89,7.60582528]
[1768371766778,5.30175962,143.93,143.9,0.65637773]
[1768371766984,0.69306483,143.93,143.9,0.65637773]
[1768371767885,0.89306483,143.96,143.92,7.60468234]
[1768371768074,0.89306483,143.96,143.93,0.65637773]
[1768371768279,0.89306483,143.96,143.92,7.60468234]
[1768371768780,0.89306483,143.96,143.93,0.65637773]
[1768371768975,0.89306483,143.96,143.94,12.68]
[1768371770666,6.77719095,143.95,143.94,12.68]
[1768371770974,6.08412612,143.95,143.92,13.31637773]
[1768371771187,6.97719095,143.96,143.92,20.26462899]
[1768371772489,0.89306483,143.96,143.92,20.26462899]
[1768371772682,6.97719095,143.96,143.92,20.26462899]
[1768371772989,6.97719095,143.96,143.92,7.60462899]
[1768371774071,6.97719095,143.96,143.92,7.544662]
[1768371774276,0.89306483,143.96,143.92,7.544662]
[1768371774478,0.89306483,143.96,143.92,6.94825126]
[1768371774689,0.89306483,143.96,143.92,6.88825128]
[1768371775582,0.89306483,143.96,143.92,12.9723774]
[1768371775785,0.89306483,143.96,143.92,6.88825128]
[1768371776195,0.89306483,143.96,143.93,0.65637773]
[1768371776491,0.89306483,143.96,143.93,0.59637774]
[1768371777278,0.69306483,143.94,143.89,23.45849487]
[1768371777477,0.69306483,143.92,143.89,6.94937945]
[1768371778381,0.69306483,143.92,143.89,7.60575718]
[1768371778780,6.77719095,143.93,143.89,7.60575718]
[1768371779494,0.69306483,143.92,143.89,7.60575718]
[1768371779678,6.77719095,143.92,143.89,6.94937945]
[1768371779997,6.77719095,143.92,143.88,7.6064423]
[1768371780184,6.77719095,143.92,143.89,0.65637773]
[1768371780382,0.69306483,143.91,143.88,7.6064423]
[1768371780692,0.69306483,143.91,143.87,20.26692207]
[1768371780693,6.77719095,143.91,143.87,20.26692207]
[1768371781385,6.77719095,143.91,143.87,7.60692207]
[1768371781775,0.69306483,143.9,143.87,7.60692207]
[1768371782489,0.69306483,143.9,143.87,6.95054434]
[1768371782689,0.69306483,143.89,143.87,6.95054434]
[1768371783801,0.69306483,143.89,143.86,7.6073851]
[1768371784201,0.69306483,143.9,143.86,7.6073851]
[1768371787112,0.69306483,143.9,143.87,0.65530978]
[1768371787312,0.69306483,143.9,143.87,7.60593056]
[1768371788217,0.69306483,143.9,143.87,0.65530978]
[1768371789011,0.69306483,143.9,143.86,6.95104379]
[1768371789012,6.77719095,143.9,143.86,7.60635357]
[1768371789814,6.77719095,143.9,143.87,6.95070655]
[1768371790111,0.69306483,143.9,143.87,7.60601633]
[1768371793119,6.7693256,143.91,143.88,0.65530978]
[1768371793810,0.68519948,143.9,143.87,0.65530978]
[1768371796117,0.68519948,143.9,143.87,7.60561209]
[1768371796719,0.68519948,143.9,143.87,13.68973821]
[1768371797220,0.68519948,143.92,143.88,7.60520778]
[1768371797405,0.68519948,143.94,143.9,6.7394359]
[1768371797605,0.68519948,143.94,143.9,6.67943592]
[1768371798124,0.68519948,143.94,143.9,6.08412612]
[1768371799217,0.68519948,143.94,143.9,6.94885751]
[1768371799518,0.68519948,143.94,143.9,13.70732669]
[1768371799705,0.68519948,143.94,143.91,0.67434306]
[1768371799908,0.66429648,143.94,143.91,0.61434307]
[1768371801246,0.2,143.96,143.91,7.56310894]
[1768371801420,6.28412612,143.96,143.91,7.56310894]
[1768371801797,0.71659612,143.95,143.91,7.56310894]
[1768371802111,0.71659612,143.95,143.91,13.64723506]
[1768371803522,0.71659612,143.95,143.91,11.45174234]
[1768371805305,0.91659612,143.96,143.93,0.67434306]
[1768371805499,0.91659612,143.96,143.93,0.6143431]
[1768371805699,0.91659612,143.96,143.92,10.83660243]
[1768371805927,0.71659612,143.95,143.92,10.83660243]
[1768371807025,0.91659612,143.96,143.92,10.83660243]
[1768371807327,0.2,143.96,143.93,6.9478183]
[1768371807501,0.2,143.96,143.94,0.67434306]
[1768371807908,0.2,143.96,143.93,4.56297646]
[1768371808107,0.91659612,143.96,143.93,0.67434306]
[1768371808531,0.91659612,143.96,143.92,0.67434306]
[1768371809025,7.14643965,143.96,143.92,0.67434306]
[1768371809233,0.71659612,143.94,143.9,7.6234644]
[1768371809533,0.71659612,143.94,143.9,6.94912134]
[1768371810001,0.71659612,143.94,143.89,7.62405937]
[1768371810002,0.71659612,143.93,143.89,7.62405937]
[1768371811504,0.71659612,143.93,143.88,7.62437437]
[1768371811723,0.71659612,143.92,143.88,7.62437437]
[1768371813731,0.71659612,143.91,143.86,0.67434306]
[1768371813912,0.71659612,143.9,143.86,7.62528412]
[1768371814410,0.71659612,143.9,143.86,11.51391752]
[1768371818439,0.71659612,143.9,143.86,7.62528412]
[1768371818744,0.71659612,143.9,143.86,4.56297646]
[1768371819635,0.69863737,143.89,143.86,0.67434306]
[1768371819839,0.69863737,143.89,143.86,4.56297646]
[1768371820137,0.69863737,143.89,143.86,0.67434306]
[1768371824243,0.69863737,143.89,143.86,7.6255235]
[1768371824626,0.69863737,143.89,143.86,7.5655235]
[1768371825336,0.69863737,143.89,143.86,0.61434306]
[1768371825530,0.69863737,143.87,143.82,6.95284943]
[1768371825729,0.69863737,143.87,143.81,6.95340848]
[1768371825730,0.69863737,143.86,143.81,6.95340848]
[1768371825917,0.69863737,143.85,143.81,6.95340848]
[1768371826119,0.69863737,143.87,143.82,3.8886334]
[1768371826539,0.69863737,143.87,143.82,4.57387809]
[1768371826848,0.69863737,143.87,143.82,0.68524469]
[1768371827051,0.69863737,143.86,143.82,7.6380925]
[1768371827771,0.69863737,143.86,143.82,11.5267259]
[1768371828766,7.64898193,143.88,143.84,4.57387809]
[1768371829160,0.69863737,143.88,143.84,4.57387809]
[1768371829541,0.69863737,143.9,143.86,4.57387809]
[1768371830968,0.69863737,143.91,143.88,4.57387809]
[1768371831163,0.69863737,143.91,143.88,0.68524469]
[1768371831347,0.69863737,143.91,143.88,4.57387809]
[1768371832047,0.69863737,143.91,143.88,0.68524469]
[1768371832248,0.69863737,143.91,143.88,4.57387809]
[1768371832467,0.69863737,143.91,143.88,3.8886334]
[1768371832969,0.69863737,143.91,143.89,3.8886334]
[1768371833144,0.69863737,143.92,143.89,3.8886334]
[1768371834542,0.69863737,143.92,143.89,4.57387809]
[1768371835158,0.69863737,143.93,143.89,4.57387809]
[1768371835361,0.69863737,143.93,143.9,3.8886334]
[1768371835664,0.69863737,143.93,143.91,3.8886334]
[1768371835867,0.69863737,143.93,143.91,3.84346026]
[1768371836047,0.69863737,143.93,143.9,4.57387809]
[1768371836244,1.15363738,143.95,143.92,3.8886334]
[1768371836450,1.15363738,143.95,143.92,3.86233889]
[1768371836654,1.15363738,143.95,143.92,3.83117397]
[1768371837666,0.45500001,143.95,143.94,3.8886334]
[1768371837869,0.45500001,143.95,143.92,3.8886334]
[1768371837870,1.15363738,143.95,143.92,3.8886334]
[1768371838450,1.15363738,143.95,143.92,4.57387809]
[1768371840268,1.15363738,143.95,143.92,4.54757868]
[1768371840460,1.15363738,143.95,143.92,4.54017767]
[1768371840655,1.15363738,143.95,143.93,3.8886334]
[1768371840861,0.45500001,143.95,143.93,3.8286334]
[1768371841166,0.45500001,143.95,143.93,3.8886334]
[1768371842149,0.89863737,143.96,143.92,10.83689949]
[1768371842471,0.89863737,143.96,143.92,11.52214418]
[1768371842873,0.89863737,143.96,143.92,4.57387809]
[1768371844779,0.89863737,143.96,143.93,3.8886334]
[1768371847072,7.84502822,143.96,143.92,4.57387809]
[1768371848076,7.84502822,143.96,143.86,41.43596524]
[1768371848077,20.85,143.92,143.79,43.32025048]
[1768371848254,3.8886334,143.85,143.79,43.32025048]
[1768371848452,8.69500734,143.84,143.79,0.672695]
[1768371848654,0.099,143.83,143.79,0.672695]
[1768371849284,6.95313586,143.82,143.79,0.672695]
[1768371850083,6.92683014,143.82,143.79,0.672695]
[1768371851878,6.95248399,143.84,143.79,0.672695]
[1768371852062,10.94011739,143.84,143.79,0.672695]
[1768371853367,3.8886334,143.83,143.79,0.672695]
[1768371856782,3.8886334,143.82,143.79,0.672695]
[1768371858483,3.8886334,143.83,143.79,0.672695]
[1768371859466,7.55013973,143.85,143.8,0.68384901]
[1768371859769,3.8886334,143.83,143.8,0.68384901]
[1768371860479,3.8886334,143.82,143.8,0.68384901]
[1768371861390,7.05121195,143.84,143.8,0.68384901]
[1768371861589,3.8886334,143.83,143.8,0.68384901]
[1768371863091,7.05121195,143.84,143.8,0.68384901]
[1768371863269,6.08735044,143.83,143.8,0.68384901]
[1768371864892,13.04033805,143.83,143.8,0.68384901]
[1768371865699,13.63368921,143.83,143.8,0.68384901]
[1768371867093,6.08735044,143.82,143.76,62.8]
[1768371867291,6.08735044,143.82,143.77,12.68]
[1768371867601,25.0142703,143.83,143.77,12.68]
[1768371867893,6.08735044,143.82,143.77,12.68]
[1768371869092,13.04081626,143.82,143.78,0.68384901]
[1768371870819,13.72046786,143.82,143.78,0.68384901]
[1768371872384,13.04081626,143.82,143.78,0.68384901]
[1768371873501,6.95346582,143.82,143.78,0.68384901]
[1768371874593,13.04081626,143.82,143.78,0.68384901]
[1768371875990,6.08735044,143.82,143.78,0.68384901]
[1768371876389,6.78141,143.82,143.78,0.68384901]
[1768371876800,6.76860315,143.85,143.8,0.69685588]
[1768371877006,0.69405956,143.86,143.82,0.69685588]
[1768371877216,6.95071939,143.87,143.82,0.69685588]
[1768371877217,6.76860315,143.85,143.82,0.69685588]
[1768371877504,6.76860315,143.85,143.83,12.68]
[1768371877697,13.72060855,143.85,143.83,12.68]
[1768371878106,6.78128194,143.84,143.79,0.69685588]
[1768371878284,0.6939315,143.84,143.8,13.37685588]
[1768371878481,6.08735044,143.83,143.8,13.37685588]
[1768371878886,6.76872993,143.83,143.8,13.37685588]
[1768371879290,13.72145354,143.83,143.8,13.37685588]
[1768371879581,6.78115642,143.82,143.79,0.69685588]
[1768371879814,6.95272361,143.83,143.8,13.37685588]
[1768371880113,6.95272361,143.83,143.8,19.46420632]
[1768371880802,6.95272361,143.83,143.81,0.69685588]
[1768371882909,6.95272361,143.83,143.8,19.46420632]
[1768371887802,0.69405956,143.84,143.81,6.08735044]
[1768371888197,0.69405956,143.84,143.81,6.78420632]
[1768371888511,0.69405956,143.84,143.81,0.69685588]
[1768371888707,0.69405956,143.84,143.81,6.78420632]
[1768371889508,0.69405956,143.84,143.81,6.08735044]
[1768371889813,6.95265243,143.83,143.81,6.78420632]
[1768371890008,7.64632438,143.84,143.81,6.78420632]
[1768371890207,7.64632438,143.84,143.82,6.08735044]
[1768371890398,7.64632438,143.84,143.83,12.68]
[1768371891191,12.24425213,143.84,143.83,12.68]
[1768371891514,7.64632438,143.84,143.83,12.68]
[1768371891896,7.64632438,143.84,143.83,12.65370344]
[1768371892414,12.25792715,143.84,143.83,12.65370344]
[1768371892912,12.25792715,143.84,143.83,12.62000003]
[1768371893317,12.25792715,143.84,143.83,12.58629662]
[1768371894388,11.56386759,143.84,143.83,12.58629662]
[1768371894602,11.56386759,143.84,143.83,12.55259321]
[1768371895112,12.2451203,143.84,143.83,12.55259321]
[1768371895812,108.50383947,143.9,143.83,18.63994365]
[1768371896003,0.69405956,143.9,143.87,6.08735044]
[1768371896203,0.69405956,143.9,143.88,12.68]
[1768371896804,0.69405956,143.89,143.87,6.08735044]
[1768371897112,0.69405956,143.89,143.88,12.68]
[1768371898216,7.64381284,143.89,143.88,12.68]
[1768371900118,7.64381284,143.89,143.87,18.76735044]
[1768371901730,0.69405956,143.91,143.88,6.08735044]
[1768371902019,0.69405956,143.9,143.88,6.08735044]
[1768371902705,0.69405956,143.9,143.87,12.68]
[1768371903017,0.69405956,143.9,143.87,18.76735044]
[1768371903219,7.64258412,143.92,143.88,6.08735044]
[1768371905422,23.45758238,143.93,143.89,6.08735044]
[1768371905423,7.62148468,143.93,143.89,6.08735044]
[1768371905593,17.36775462,143.95,143.87,12.68]
[1768371905594,7.62122144,143.94,143.9,6.06105403]
[1768371905800,7.62122144,143.94,143.9,6.02208591]
[1768371906004,0.67366283,143.93,143.89,6.08735044]
[1768371907614,7.62166287,143.93,143.89,6.08735044]
[1768371908331,0.67366283,143.95,143.9,6.08735044]
[1768371908901,0.67366283,143.95,143.87,92.85607131]
[1768371909098,0.67366283,143.95,143.9,6.08735044]
[1768371909403,0.67366283,143.94,143.91,6.08735044]
[1768371911916,0.67366283,143.94,143.88,6.9502363]
[1768371912118,0.67366283,143.94,143.91,6.08735044]
[1768371914026,0.67366283,143.94,143.9,6.08735044]
[1768371915101,0.67366283,143.93,143.88,6.9502363]
[1768371915322,0.67366283,143.93,143.9,6.08735044]
[1768371916308,7.6213446,143.94,143.9,6.08735044]
[1768371916526,13.70869504,143.94,143.89,6.08735044]
[1768371916705,0.67366283,143.93,143.89,6.08735044]
[1768371917211,13.70869504,143.94,143.89,6.08735044]
[1768371917422,0.67366283,143.93,143.89,6.08735044]
[1768371921433,13.73431156,143.94,143.89,6.08735044]
[1768371922426,7.64696112,143.94,143.89,6.08735044]
[1768371922618,7.64696112,143.94,143.9,6.08735044]
[1768371923019,7.64696112,143.94,143.88,6.9502363]
[1768371923220,0.69927935,143.93,143.89,6.08735044]
[1768371923419,0.69927935,143.89,143.79,97.57154044]
[1768371923733,0.69927935,143.88,143.79,34.77154044]
[1768371923931,0.69927935,143.88,143.82,13.0401603]
[1768371923932,0.69927935,143.87,143.82,13.0401603]
[1768371924233,0.69927935,143.87,143.82,6.08735044]
[1768371924812,0.69927935,143.87,143.82,13.04046971]
[1768371925424,4.59292406,143.87,143.82,10.84676398]
[1768371925928,3.89364471,143.86,143.81,6.95361935]
[1768371927525,0.69927935,143.86,143.81,6.95361935]
[1768371927726,4.59292406,143.86,143.81,6.95361935]
[1768371929243,3.89364471,143.84,143.81,6.95361935]
[1768371929546,0.69927935,143.84,143.81,6.95361935]
[1768371929729,3.89364471,143.85,143.81,6.95361935]
[1768371929935,4.59292406,143.85,143.81,6.95361935]
[1768371930235,4.59292406,143.85,143.78,33.9406866]
[1768371930438,0.69927935,143.85,143.78,33.9406866]
[1768371930627,4.59292406,143.85,143.78,33.9406866]
[1768371931441,4.59292406,143.85,143.79,6.95458654]
[1768371931844,3.89364471,143.84,143.79,6.95458654]
[1768371933539,4.59292406,143.84,143.79,6.95458654]
[1768371935034,0.69927935,143.84,143.79,6.95458654]
[1768371935348,0.72492269,143.83,143.79,6.95458654]
[1768371935730,0.69862274,143.83,143.79,6.95458654]
[1768371936049,0.69862274,143.83,143.79,10.8745312]
[1768371936436,0.69862274,143.83,143.79,6.95458654]
[1768371936836,4.59226745,143.83,143.79,6.95458654]
[1768371937451,4.59226745,143.83,143.79,6.98088649]
[1768371938454,0.69862274,143.83,143.79,6.98088649]
[1768371938754,0.69862274,143.83,143.79,6.95458654]
[1768371939138,0.69862274,143.83,143.79,6.98088649]
[1768371939453,0.69862274,143.83,143.79,0.02629995]
[1768371940051,0.69862274,143.83,143.78,28.26205679]
[1768371940356,0.69862274,143.83,143.78,24.36841208]
[1768371941057,0.69862274,143.83,143.78,28.26205679]
[1768371941356,0.69862274,143.83,143.78,24.36841208]
[1768371941532,0.69862274,143.83,143.78,28.26205679]
[1768371941733,0.69862274,143.83,143.79,0.02629995]
[1768371945054,0.69862274,143.83,143.8,0.02629995]
[1768371945834,0.72492269,143.84,143.8,0.02629995]
[1768371946236,0.72492269,143.84,143.8,6.98040287]
[1768371947358,0.72492269,143.84,143.8,0.02629995]
[1768371947755,4.6185674,143.84,143.8,0.02629995]
[1768371947956,0.72492269,143.83,143.8,0.02629995]
[1768371948263,0.72492269,143.83,143.79,24.36651701]
[1768371949450,0.72492269,143.83,143.79,17.41193047]
[1768371950163,0.72492269,143.83,143.79,21.30557518]
[1768371952268,0.72492269,143.83,143.79,28.26016172]
[1768371953374,0.72492269,143.82,143.79,6.95458654]
[1768371953577,0.72492269,143.82,143.79,6.98088649]
[1768371953872,0.72492269,143.82,143.79,24.36735286]
[1768371954076,0.72492269,143.82,143.79,6.98088649]
[1768371955368,0.72492269,143.82,143.79,10.8745312]
[1768371955667,0.72492269,143.84,143.79,10.8745312]
[1768371956267,6.95137797,143.86,143.82,3.91994466]
[1768371956268,0.72492269,143.86,143.82,3.91994466]
[1768371956748,0.72492269,143.86,143.82,0.02629995]
[1768371957369,0.72492269,143.86,143.83,6.95265243]
[1768371960970,0.72492269,143.86,143.82,10.8466237]
[1768371961280,0.72492269,143.86,143.8,16.59994466]
[1768371961281,0.72492269,143.85,143.8,16.59994466]
[1768371961574,0.72492269,143.85,143.81,6.95334333]
[1768371961972,0.72492269,143.84,143.81,6.95334333]
[1768371963477,0.72492269,143.84,143.8,6.95410292]
[1768371964477,0.72492269,143.84,143.8,6.98040287]
[1768371966579,0.72492269,143.84,143.79,21.27971923]
[1768371966580,0.72492269,143.84,143.79,6.95435192]
[1768371966787,0.72223777,143.81,143.77,17.41449817]
[1768371967163,0.72223777,143.81,143.78,6.95478912]
[1768371967585,0.72223777,143.81,143.79,6.95448698]
[1768371968181,0.72223777,143.81,143.78,6.95507024]
[1768371968482,0.72223777,143.81,143.78,10.84871495]
[1768371969887,0.72223777,143.81,143.78,6.95507024]
[1768371970591,0.72223777,143.81,143.77,6.95531776]
[1768371972569,0.72223777,143.81,143.77,3.89364471]
[1768371973582,0.72223777,143.81,143.76,0.02629995]
[1768371973781,0.72223777,143.81,143.77,3.89364471]
[1768371974782,0.72223777,143.8,143.76,0.02629995]
[1768371975390,0.72223777,143.79,143.75,24.34731175]
[1768371975582,0.72223777,143.79,143.75,24.3736117]
[1768371978289,0.72223777,143.79,143.75,28.26725641]
[1768371981599,21.27343948,143.85,143.79,0.02629995]
[1768371981600,0.7044447,143.84,143.79,0.02629995]
[1768371981784,0.7044447,143.84,143.79,3.91994466]
[1768371982088,4.59808941,143.84,143.79,0.02629995]
[1768371982294,0.7044447,143.83,143.78,3.89364471]
[1768371982484,0.7044447,143.83,143.79,6.95458654]
[1768371983684,3.89364471,143.87,143.82,0.65456605]
[1768371983877,3.89364471,143.88,143.82,3.89364471]
[1768371984395,3.89364471,143.87,143.82,4.54821076]
[1768371984590,3.89364471,143.88,143.83,7.60721848]
[1768371985094,17.37317581,143.9,143.84,4.54821076]
[1768371985095,3.89364471,143.9,143.84,4.54821076]
[1768371985486,0.7044447,143.89,143.84,4.54821076]
[1768371986891,116.80856728,143.96,143.85,7.60625183]
[1768371987098,3.89364471,143.92,143.86,4.54821076]
[1768371987278,6.08156963,143.89,143.85,6.95168578]
[1768371987479,6.08156963,143.9,143.85,7.60625183]
[1768371988076,6.08156963,143.91,143.85,13.68782146]
[1768371989100,0.7044447,143.9,143.85,13.68782146]
[1768371990576,0.7044447,143.89,143.85,7.60625183]
[1768371991187,0.7044447,143.88,143.85,7.60625183]
[1768371992102,0.7044447,143.88,143.85,0.65456605]
[1768371992598,0.7044447,143.88,143.85,7.60623933]
[1768371992980,0.7044447,143.88,143.86,6.08156963]
[1768371993403,0.7044447,143.9,143.86,13.68724817]
[1768371993799,0.7044447,143.89,143.84,0.65456605]
[1768371993986,0.7044447,143.89,143.85,6.73613568]
[1768371994186,0.7044447,143.89,143.85,13.68773532]
[1768371998793,0.7044447,143.89,143.86,6.08156963]
[1768371999792,0.7044447,143.89,143.86,6.02156963]
[1768372001813,0.67757183,143.91,143.87,6.75645561]
[1768372002016,0.67757183,143.91,143.88,6.08156963]
[1768372002717,0.67757183,143.91,143.89,6.08156963]
[1768372003390,7.62558408,143.93,143.9,6.08156963]
[1768372003595,0.67757183,143.92,143.88,0.67488598]
[1768372003790,0.67757183,143.92,143.88,6.75645561]
[1768372004718,0.67757183,143.92,143.88,6.08156963]
[1768372006520,0.67757183,143.91,143.88,6.08156963]
[1768372006721,0.67757183,143.91,143.88,6.75645561]
[1768372007410,0.67757183,143.91,143.89,6.08156963]
[1768372007835,0.67757183,143.91,143.88,7.62503195]
[1768372008006,0.67757183,143.91,143.89,6.08156963]
[1768372009925,0.67757183,143.91,143.89,6.02156963]
[1768372013609,0.67757183,143.92,143.89,6.69645561]
[1768372013923,0.67757183,143.93,143.9,0.67488598]
[1768372014124,0.67757183,143.93,143.9,6.75645561]
[1768372014511,0.67757183,143.93,143.9,6.08156963]
[1768372018508,0.67757183,143.93,143.9,6.75645561]
[1768372020517,6.94697071,143.95,143.91,0.67488598]
[1768372020741,0.67757183,143.95,143.93,6.08156963]
[1768372021346,0.67757183,143.95,143.92,6.75645561]
[1768372021639,0.67757183,143.95,143.93,6.08156963]
[1768372022425,0.87757183,143.96,143.93,6.75645561]
[1768372023116,0.87757183,143.96,143.93,0.67488598]
[1768372023438,0.87757183,143.96,143.93,6.75645561]
[1768372023619,0.87757183,143.96,143.94,6.08156963]
[1768372025436,0.2,143.96,143.95,6.79014575]
[1768372025760,0.90284578,143.97,143.95,6.08156963]
[1768372025919,0.90284578,143.98,143.96,6.08156963]
[1768372027135,0.2,143.98,143.97,6.08156963]
[1768372027434,0.2,144.01,143.98,0.70857612]
[1768372027646,0.70284578,144.03,144.0,6.79014575]
[1768372027818,0.70284578,144.03,144.01,6.08156963]
[1768372028618,0.70284578,144.03,144.0,13.73455998]
[1768372029040,0.70284578,144.03,144.0,6.79014575]
[1768372030738,0.70284578,144.03,143.99,13.02632542]
[1768372031042,6.08156963,144.0,143.89,0.70857612]
[1768372031246,6.08156963,143.96,143.91,0.70857612]
[1768372031453,0.70284578,143.96,143.92,0.70857612]
[1768372032052,0.70284578,143.96,143.91,6.79014575]
[1768372032349,0.70284578,143.95,143.91,0.70857612]
[1768372034543,0.70284578,143.96,143.92,0.70857612]
[1768372034751,0.70284578,143.97,143.93,6.79014575]
[1768372035136,0.70284578,143.97,143.93,0.70857612]
[1768372035540,0.70284578,143.97,143.93,6.79014575]
[1768372035744,0.70284578,143.96,143.92,6.08156963]
[1768372036342,0.70284578,143.96,143.92,6.79014575]
[1768372038153,0.70284578,143.96,143.93,0.72487388]
[1768372038541,0.70284578,143.96,143.93,6.80644351]
[1768372039752,0.70284578,143.96,143.93,0.72487388]
[1768372041147,0.70284578,143.96,143.92,6.80644351]
[1768372041342,0.70284578,143.96,143.92,0.72487388]
[1768372042255,0.70284578,143.96,143.91,13.75503161]
[1768372042952,0.71245377,143.95,143.91,6.80644351]
[1768372046158,0.71245377,143.95,143.91,13.75519225]
[1768372047437,0.71245377,143.94,143.9,0.72487388]
[1768372048160,0.71245377,143.94,143.91,0.72487388]
[1768372048661,0.71245377,143.94,143.91,4.6138444]
[1768372049154,0.71245377,143.95,143.92,4.6138444]
[1768372049957,0.71245377,143.95,143.92,0.72487388]
[1768372050263,0.71245377,143.95,143.92,4.6138444]
[1768372050560,13.37245377,143.96,143.92,4.6138444]
[1768372051053,0.71245377,143.96,143.93,4.6138444]
[1768372051352,7.65804735,143.98,143.94,0.72487388]
[1768372051549,0.71245377,143.97,143.93,4.6138444]
[1768372051753,0.71245377,143.97,143.93,0.72487388]
[1768372053355,0.71245377,143.96,143.92,11.56191286]
[1768372054755,0.71245377,143.96,143.93,0.72487388]
[1768372056155,0.71245377,143.96,143.92,10.83703898]
[1768372056365,0.71245377,143.96,143.92,11.54897037]
[1768372057060,0.71245377,143.96,143.93,0.71193139]
[1768372058139,0.71245377,143.96,143.92,11.54897037]
[1768372058332,0.71245377,143.96,143.92,7.65999985]
[1768372058953,0.71559255,143.95,143.92,0.71193139]
[1768372059155,0.71559255,143.95,143.91,11.54959707]
[1768372059553,0.71559255,143.95,143.92,3.88897052]
[1768372059745,0.71559255,143.95,143.91,11.54959707]
[1768372059962,0.71559255,143.95,143.92,3.88897052]
[1768372060348,0.71559255,143.95,143.91,11.54959707]
[1768372061382,0.71559255,143.95,143.92,4.60090191]
[1768372061751,0.71559255,143.96,143.93,0.71193139]
[1768372062973,0.71559255,143.96,143.93,0.6519314]
[1768372063346,6.94594103,143.97,143.93,0.6519314]
[1768372063546,7.66153358,143.97,143.93,0.6519314]
[1768372063865,0.71559255,143.96,143.93,0.6519314]
[1768372064064,0.71559255,143.96,143.91,6.94857866]
[1768372064265,0.71559255,143.95,143.91,6.94857866]
[1768372065458,0.71559255,143.95,143.91,7.66051005]
[1768372066057,0.71559255,143.94,143.89,0.71193139]